bitfinex-derivatives/quotes_SOLF0:USTF0_20241101
["timestamp","ask_amount","ask_price","bid_price","bid_amount"]
[1730473067191,22.49013109,171.2,171.1,4.3]
[1730473067396,2.922,171.16,171.13,2.9224]
[1730473067600,22.49013109,171.23,171.13,4.3]
[1730473068490,2.9217,171.18,171.14,2.9221]
[1730473068698,2.9217,171.18,171.13,4.3]
[1730473069197,22.49013109,171.23,171.13,4.3]
[1730473069198,2.9219,171.17,171.13,4.3]
[1730473069897,22.49013109,171.21,171.13,4.3]
[1730473070095,2.9216,171.18,171.13,4.3]
[1730473070296,22.49013109,171.23,171.13,4.3]
[1730473070486,22.49013109,171.23,171.16,2.9219]
[1730473070687,22.49013109,171.23,171.13,4.3]
[1730473071396,2.9213,171.2,171.13,4.3]
[1730473072384,2.9216,171.18,171.13,4.3]
[1730473072790,2.9216,171.18,171.15,2.922]
[1730473073592,22.49013109,171.2,171.11,4.3]
[1730473074001,2.9219,171.17,171.14,2.9222]
[1730473074298,22.49013109,171.2,171.13,4.3]
[1730473074697,22.49013109,171.2,171.15,2.9219]
[1730473075408,2.9216,171.18,171.15,2.9219]
[1730473076198,2.9215,171.19,171.16,2.9218]
[1730473076704,2.9215,171.19,171.17,2.9217]
[1730473076896,22.49013109,171.23,171.13,4.3]
[1730473077096,22.49013109,171.26,171.21,2.9211]
[1730473077396,22.49013109,171.26,171.14,22.49013109]
[1730473077597,22.49013109,171.24,171.15,2.922]
[1730473077898,22.49013109,171.24,171.15,4.3]
[1730473078597,2.9216,171.19,171.15,4.3]
[1730473078798,22.49013109,171.24,171.15,4.3]
[1730473079191,2.9218,171.17,171.15,7.222]
[1730473080001,2.9217,171.18,171.15,7.222]
[1730473082204,2.9219,171.17,171.15,4.3]
[1730473082403,22.49013109,171.21,171.09,2.7086]
[1730473082599,5.841,171.25,171.09,2.7086]
[1730473082600,22.49013109,171.19,171.1,4.3]
[1730473082903,22.49013109,171.19,171.11,2.9227]
[1730473083300,2.9224,171.14,171.11,2.9227]
[1730473083696,22.49013109,171.19,171.11,2.9227]
[1730473083902,2.9224,171.13,171.1,2.9229]
[1730473084304,2.9221,171.15,171.09,7.0086]
[1730473084508,22.49013109,171.19,171.12,2.9226]
[1730473084708,22.49013109,171.19,171.09,7.0086]
[1730473085098,22.49013109,171.19,171.14,2.9222]
[1730473085299,2.922,171.16,171.14,2.9222]
[1730473085504,2.922,171.16,171.09,7.0086]
[1730473085705,2.922,171.16,171.13,2.9224]
[1730473085910,2.9224,171.14,171.09,7.0086]
[1730473086111,22.49013109,171.19,171.11,2.9226]
[1730473086313,22.49013109,171.19,171.09,7.0086]
[1730473086516,2.9225,171.13,171.09,7.0086]
[1730473086716,2.9225,171.13,171.11,2.9228]
[1730473086916,22.49013109,171.19,171.11,2.9228]
[1730473087706,2.9224,171.14,171.11,2.9228]
[1730473087906,22.49013109,171.19,171.11,2.9228]
[1730473089010,22.49013109,171.19,171.09,7.0086]
[1730473089627,2.922,171.16,171.09,7.0086]
[1730473090007,2.922,171.16,171.13,2.9223]
[1730473090615,22.49013109,171.21,171.09,7.0086]
[1730473090921,22.49013109,171.21,171.09,29.49873109]
[1730473090922,2.9216,171.18,171.09,29.49873109]
[1730473091317,2.9216,171.18,171.15,2.922]
[1730473092422,22.49013109,171.24,171.15,2.922]
[1730473092423,2.9218,171.17,171.15,2.922]
[1730473092616,2.9218,171.17,171.09,29.49873109]
[1730473092808,22.49013109,171.24,171.09,29.49873109]
[1730473093209,2.9216,171.18,171.15,2.9219]
[1730473093421,2.9216,171.18,171.09,29.49873109]
[1730473093825,2.9216,171.18,171.15,2.9219]
[1730473094421,2.9216,171.18,171.09,29.49873109]
[1730473094614,2.9216,171.18,171.16,2.9219]
[1730473094818,22.49013109,171.24,171.09,29.49873109]
[1730473094819,2.921,171.22,171.13,2.97920722]
[1730473095028,2.921,171.22,171.14,28.17483109]
[1730473095321,22.49013109,171.27,171.2,2.9211]
[1730473095520,22.49013109,171.27,171.14,31.08769732]
[1730473096028,22.49013109,171.27,171.17,2.9216]
[1730473096029,2.9207,171.23,171.17,2.9216]
[1730473096228,22.49013109,171.27,171.14,5.6847]
[1730473096612,2.9212,171.21,171.18,2.9214]
[1730473096815,2.9212,171.21,171.14,5.6847]
[1730473097024,22.49013109,171.27,171.14,5.6847]
[1730473097322,4.3,171.31,171.17,2.9216]
[1730473097323,2.9213,171.2,171.17,2.9216]
[1730473097821,2.9211,171.21,171.15,4.3]
[1730473098226,2.9211,171.21,171.18,2.9215]
[1730473099127,22.49013109,171.24,171.15,4.3]
[1730473100019,2.9211,171.21,171.15,4.3]
[1730473100424,22.49013109,171.24,171.15,4.3]
[1730473101127,2.9212,171.2,171.15,4.3]
[1730473101532,2.9212,171.2,171.17,2.9216]
[1730473101732,2.9212,171.2,171.15,4.3]
[1730473101933,4.3,171.31,171.15,4.3]
[1730473101934,2.9211,171.21,171.15,4.3]
[1730473102130,22.49013109,171.27,171.17,2.9216]
[1730473102326,2.9213,171.2,171.17,2.9216]
[1730473102637,22.49013109,171.24,171.15,4.3]
[1730473103136,22.49013109,171.24,171.16,2.9218]
[1730473103327,22.49013109,171.24,171.15,4.3]
[1730473103531,2.9213,171.2,171.15,4.3]
[1730473104033,2.9213,171.2,171.17,2.9216]
[1730473105625,14.02688526,171.18,171.12,4.3]
[1730473106223,14.02688526,171.18,171.11,4.3]
[1730473106629,2.9219,171.16,171.14,2.9222]
[1730473106933,14.02688526,171.24,171.13,17.01351647]
[1730473107725,2.921,171.22,171.2,2.9211]
[1730473108030,2.921,171.22,171.17,4.3]
[1730473108437,2.921,171.22,171.19,2.9213]
[1730473109539,2.9208,171.23,171.2,2.9212]
[1730473109737,22.43913986,171.27,171.2,2.9212]
[1730473109931,22.43913986,171.27,171.17,4.3]
[1730473110130,2.921,171.22,171.19,2.9214]
[1730473111238,2.9212,171.21,171.18,2.9216]
[1730473112630,2.9211,171.21,171.18,2.9216]
[1730473113138,2.9211,171.21,171.19,2.9214]
[1730473114535,2.921,171.22,171.19,2.9214]
[1730473115127,22.43913986,171.24,171.19,2.9214]
[1730473115329,2.9211,171.21,171.19,2.9214]
[1730473116425,2.9212,171.2,171.17,7.2216]
[1730473118541,2.9212,171.2,171.18,2.9216]
[1730473120745,2.9206,171.24,171.2,2.9212]
[1730473120934,22.43913986,171.27,171.17,4.3]
[1730473121134,22.43913986,171.3,171.18,2.685]
[1730473121939,22.43913986,171.3,171.23,2.9206]
[1730473122134,28.7275639,171.32,171.19,22.43913986]
[1730473122432,2.9201,171.27,171.24,2.9204]
[1730473122637,2.9201,171.27,171.23,4.28]
[1730473123042,28.7275639,171.32,171.23,4.28]
[1730473123545,28.7275639,171.32,171.23,5.6602]
[1730473123847,2.9195,171.31,171.28,2.9198]
[1730473124546,2.9193,171.32,171.29,2.9196]
[1730473126146,5.8363,171.39,171.23,5.6602]
[1730473126346,2.9192,171.32,171.29,2.9197]
[1730473126640,4.28,171.41,171.24,22.43913986]
[1730473127049,4.28,171.43,171.24,22.43913986]
[1730473127440,2.9188,171.35,171.32,2.9191]
[1730473127641,22.43913986,171.43,171.31,4.28]
[1730473127941,22.43913986,171.43,171.37,2.9182]
[1730473127942,2.9179,171.4,171.37,2.9182]
[1730473128336,22.43913986,171.43,171.32,8.0419]
[1730473128536,2.9178,171.41,171.37,2.9182]
[1730473129342,2.9178,171.41,171.33,14.01181686]
[1730473129552,2.9176,171.42,171.39,2.918]
[1730473129740,2.9176,171.42,171.35,14.01181686]
[1730473129935,2.9176,171.42,171.38,2.9181]
[1730473130139,14.01181686,171.41,171.32,8.0419]
[1730473130652,2.9177,171.42,171.32,30.45803124]
[1730473131144,2.9176,171.42,171.32,30.45803124]
[1730473131536,22.41613124,171.46,171.36,2.9185]
[1730473131751,2.918,171.4,171.36,2.9185]
[1730473132046,22.41613124,171.47,171.33,22.41613124]
[1730473132348,2.9173,171.43,171.4,2.9178]
[1730473132842,22.41613124,171.47,171.38,4.28]
[1730473133045,22.41613124,171.47,171.37,4.28]
[1730473133545,2.9173,171.44,171.41,2.9176]
[1730473133846,22.41613124,171.49,171.37,4.28]
[1730473134050,2.917,171.45,171.41,2.9176]
[1730473134253,7.87651449,171.75,171.37,4.28]
[1730473134254,22.41613124,171.53,171.39,22.41613124]
[1730473134547,2.9163,171.49,171.45,2.9169]
[1730473135139,22.41613124,171.53,171.44,4.28]
[1730473135649,22.41613124,171.55,171.44,4.28]
[1730473135839,22.41613124,171.55,171.46,2.9168]
[1730473135840,2.9164,171.49,171.46,2.9168]
[1730473136149,22.41613124,171.52,171.44,4.28]
[1730473136948,2.9165,171.48,171.44,4.28]
[1730473138045,67.3047995,171.58,171.4,4.28]
[1730473138046,22.41613124,171.5,171.4,4.28]
[1730473138251,4.28,171.55,171.34,3.9789]
[1730473138252,22.41613124,171.47,171.34,3.9789]
[1730473138455,22.41613124,171.47,171.35,4.28]
[1730473138649,22.41613124,171.47,171.38,2.9181]
[1730473139060,2.9176,171.42,171.35,7.1986]
[1730473139241,22.41613124,171.44,171.35,4.28]
[1730473139654,2.9179,171.4,171.36,2.9185]
[1730473140047,2.9179,171.4,171.35,4.28]
[1730473140555,4.28,171.49,171.35,4.28]
[1730473140556,22.41613124,171.47,171.35,4.28]
[1730473140746,2.9174,171.43,171.35,4.28]
[1730473141146,2.9174,171.43,171.4,2.9178]
[1730473141549,2.9172,171.44,171.35,4.28]
[1730473141749,2.9172,171.44,171.4,2.9178]
[1730473141953,22.41613124,171.47,171.4,2.9178]
[1730473142150,22.41613124,171.47,171.35,4.28]
[1730473142151,22.41613124,171.5,171.36,22.41613124]
[1730473142459,2.917,171.47,171.36,22.41613124]
[1730473142654,2.87350632,171.59,171.35,4.28]
[1730473142655,22.41613124,171.52,171.39,22.41613124]
[1730473142965,2.9168,171.49,171.44,2.9174]
[1730473143167,2.9168,171.49,171.43,4.28]
[1730473143361,22.41613124,171.57,171.43,4.28]
[1730473143656,2.916,171.53,171.44,25.00763124]
[1730473143967,22.41613124,171.57,171.44,26.38253124]
[1730473144664,28.50545888,171.75,171.47,22.41613124]
[1730473144665,22.41613124,171.61,171.47,22.41613124]
[1730473144853,22.41613124,171.61,171.51,2.9161]
[1730473145053,22.41613124,171.61,171.51,7.1761]
[1730473145254,22.41613124,171.61,171.51,4.26]
[1730473145452,22.41613124,171.61,171.53,2.9158]
[1730473145756,2.915,171.59,171.53,2.9158]
[1730473146062,22.41613124,171.61,171.51,4.26]
[1730473146269,2.9161,171.52,171.51,4.26]
[1730473147560,2.9154,171.56,171.51,4.26]
[1730473147763,22.41613124,171.58,171.44,26.38253124]
[1730473147958,4.26,171.65,171.44,26.38253124]
[1730473147959,22.41613124,171.55,171.45,4.26]
[1730473148164,2.9163,171.51,171.47,2.9169]
[1730473148870,2.9165,171.5,171.47,4.26]
[1730473149264,22.41613124,171.55,171.47,4.26]
[1730473149465,2.9165,171.5,171.47,7.1768]
[1730473149866,22.41613124,171.55,171.49,2.9165]
[1730473149867,2.9162,171.52,171.49,2.9165]
[1730473150871,22.41613124,171.55,171.44,3.9664]
[1730473151173,22.41613124,171.55,171.45,4.26]
[1730473151966,2.9162,171.52,171.48,2.9166]
[1730473152167,2.9162,171.52,171.45,4.26]
[1730473152962,2.9159,171.53,171.45,4.26]
[1730473153163,13.99448008,171.56,171.46,13.99448008]
[1730473153567,2.9161,171.53,171.46,13.99448008]
[1730473153864,2.9161,171.53,171.49,2.9164]
[1730473154275,2.9161,171.53,171.5,2.9164]
[1730473154871,2.916,171.53,171.5,2.9164]
[1730473155465,2.9161,171.52,171.5,2.9164]
[1730473155866,13.99448008,171.56,171.46,13.99448008]
[1730473156167,13.99448008,171.52,171.44,3.9664]
[1730473156368,13.99448008,171.52,171.45,4.26]
[1730473156782,13.99448008,171.52,171.47,2.9169]
[1730473156972,13.99448008,171.52,171.45,4.26]
[1730473157272,13.99448008,171.49,171.44,2.5915]
[1730473157568,18.25448008,171.58,171.43,4.26]
[1730473157569,13.99448008,171.47,171.43,4.26]
[1730473157769,2.9174,171.45,171.43,4.26]
[1730473157968,13.99448008,171.47,171.43,4.26]
[1730473158362,13.99448008,171.47,171.42,4.26]
[1730473158569,13.99448008,171.49,171.42,4.26]
[1730473158872,2.9169,171.48,171.45,2.9172]
[1730473159076,13.99448008,171.51,171.42,4.26]
[1730473159270,13.99448008,171.51,171.42,5.5769]
[1730473159468,2.9167,171.49,171.46,2.917]
[1730473159770,2.9167,171.49,171.42,5.5769]
[1730473159771,13.99448008,171.51,171.42,5.5769]
[1730473160171,2.9169,171.48,171.45,2.9172]
[1730473160769,2.9169,171.48,171.46,2.9171]
[1730473160969,13.99448008,171.51,171.46,2.9171]
[1730473161170,13.99448008,171.51,171.42,5.5769]
[1730473161372,13.99448008,171.51,171.47,2.9168]
[1730473161768,2.9165,171.5,171.47,2.9168]
[1730473161969,13.99448008,171.54,171.48,2.9167]
[1730473162165,13.99448008,171.54,171.44,13.99448008]
[1730473162366,2.9161,171.53,171.44,13.99448008]
[1730473162573,13.99448008,171.54,171.44,13.99448008]
[1730473162778,2.916,171.53,171.44,13.99448008]
[1730473162973,13.99448008,171.54,171.44,13.99448008]
[1730473163165,4.26,171.65,171.42,19.57138008]
[1730473163166,13.99448008,171.52,171.42,19.57138008]
[1730473163377,2.9166,171.49,171.42,19.57138008]
[1730473163675,13.99448008,171.54,171.44,13.99448008]
[1730473163884,13.99448008,171.54,171.42,5.5769]
[1730473163885,2.9155,171.56,171.47,13.99448008]
[1730473164073,2.9155,171.56,171.48,6.9983]
[1730473164381,2.9155,171.56,171.53,2.9159]
[1730473164679,2.9156,171.55,171.48,6.9983]
[1730473164874,2.9156,171.55,171.52,2.916]
[1730473165867,13.99448008,171.56,171.48,2.7383]
[1730473166068,13.99448008,171.54,171.47,4.26]
[1730473166465,13.99448008,171.54,171.46,2.917]
[1730473166466,2.9167,171.49,171.46,2.917]
[1730473166666,13.99448008,171.51,171.44,4.26]
[1730473167976,2.9167,171.49,171.46,2.9171]
[1730473168272,13.99448008,171.51,171.44,4.26]
[1730473168473,2.9169,171.48,171.45,2.9173]
[1730473169476,2.9171,171.47,171.44,7.1773]
[1730473169672,22.40102411,171.52,171.44,4.26]
[1730473170177,2.917,171.47,171.44,7.1773]
[1730473170381,22.40102411,171.55,171.44,4.26]
[1730473170773,22.40102411,171.53,171.45,2.9171]
[1730473172078,22.40102411,171.53,171.44,4.26]
[1730473172287,2.9169,171.48,171.44,4.26]
[1730473172883,2.9169,171.48,171.45,2.9171]
[1730473173875,2.9167,171.49,171.46,2.9171]
[1730473174074,2.9167,171.49,171.44,4.26]
[1730473174287,2.9165,171.5,171.47,2.9168]
[1730473174480,22.40102411,171.55,171.44,4.26]
[1730473174679,22.40102411,171.58,171.45,22.40102411]
[1730473175085,22.40102411,171.58,171.5,2.9164]
[1730473176082,2.9157,171.55,171.48,2.9166]
[1730473176385,22.40102411,171.58,171.45,22.40102411]
[1730473176576,2.9162,171.52,171.49,2.9165]
[1730473177179,2.9162,171.52,171.45,22.40102411]
[1730473177376,22.40102411,171.58,171.45,22.40102411]
[1730473178400,2.9161,171.52,171.45,22.40102411]
[1730473178680,2.9161,171.52,171.49,2.9165]
[1730473179390,22.40102411,171.58,171.45,22.40102411]
[1730473179391,2.9164,171.51,171.48,2.9167]
[1730473179888,4.26,171.62,171.44,4.26]
[1730473179889,22.40102411,171.56,171.44,4.26]
[1730473180087,22.40102411,171.56,171.47,2.9168]
[1730473180487,2.9163,171.51,171.48,2.9167]
[1730473181480,22.40102411,171.56,171.48,2.9167]
[1730473181691,2.9165,171.5,171.48,2.9167]
[1730473183085,2.9165,171.5,171.44,4.26]
[1730473183281,2.9165,171.5,171.47,2.9168]
[1730473185993,22.40102411,171.56,171.46,4.26]
[1730473185994,22.40102411,171.53,171.46,4.26]
[1730473186585,2.9165,171.5,171.47,2.9168]
[1730473187380,22.40102411,171.56,171.46,4.26]
[1730473188192,2.9161,171.52,171.5,2.9164]
[1730473188696,22.40102411,171.56,171.51,2.9162]
[1730473188697,2.9156,171.56,171.51,2.9162]
[1730473188998,28.23092411,171.59,171.46,4.26]
[1730473189499,2.916,171.53,171.5,2.9163]
[1730473189890,2.9158,171.54,171.51,2.9162]
[1730473190389,2.9159,171.53,171.5,2.9163]
[1730473190586,14.00647635,171.55,171.46,4.26]
[1730473191690,2.916,171.53,171.5,2.9164]
[1730473192293,2.9157,171.55,171.52,2.916]
[1730473192496,2.9157,171.55,171.47,14.00647635]
[1730473192801,2.9157,171.55,171.52,2.916]
[1730473194400,14.00647635,171.57,171.49,2.9165]
[1730473194595,14.00647635,171.57,171.47,14.00647635]
[1730473195201,2.916,171.53,171.5,2.9163]
[1730473195805,2.916,171.53,171.51,2.9161]
[1730473198213,14.00647635,171.57,171.52,2.916]
[1730473198513,14.00647635,171.57,171.49,14.00647635]
[1730473198811,2.9157,171.55,171.52,2.9159]
[1730473199113,14.00647635,171.57,171.49,14.00647635]
[1730473199309,2.9157,171.55,171.52,2.916]
[1730473199909,2.9157,171.55,171.51,2.9162]
[1730473199910,2.9156,171.55,171.51,2.9162]
[1730473200109,14.00647635,171.57,171.51,2.9162]
[1730473200507,14.00647635,171.57,171.5,2.6051]
[1730473200717,14.00647635,171.6,171.5,2.6051]
[1730473201021,244.5613,171.75,171.53,14.00647635]
[1730473201022,14.00647635,171.62,171.53,14.00647635]
[1730473201213,14.00647635,171.64,171.58,2.915]
[1730473202020,14.00647635,171.64,171.56,2.9153]
[1730473202213,14.00647635,171.62,171.54,4.26]
[1730473202408,14.00647635,171.6,171.54,4.26]
[1730473202612,14.00647635,171.58,171.5,6.8651]
[1730473202923,2.916,171.53,171.5,4.26]
[1730473203119,14.00647635,171.56,171.5,4.26]
[1730473203516,2.916,171.53,171.5,4.26]
[1730473203913,14.00647635,171.58,171.5,4.26]
[1730473204110,2.9155,171.56,171.5,4.26]
[1730473204311,14.00647635,171.6,171.5,4.26]
[1730473204514,14.00647635,171.6,171.51,16.62917635]
[1730473204711,2.9153,171.57,171.51,16.62917635]
[1730473204917,14.00647635,171.6,171.51,16.62917635]
[1730473205119,2.9148,171.6,171.51,16.62917635]
[1730473205324,2.9148,171.6,171.53,14.00647635]
[1730473205621,2.9148,171.6,171.57,2.9151]
[1730473205825,2.9146,171.61,171.56,4.24]
[1730473206216,2.9146,171.61,171.58,2.915]
[1730473207123,14.00647635,171.62,171.58,2.915]
[1730473207319,2.9147,171.6,171.57,2.9152]
[1730473208022,14.00647635,171.62,171.56,4.24]
[1730473208229,2.9145,171.62,171.56,4.24]
[1730473208526,14.00647635,171.64,171.56,4.24]
[1730473209421,2.9146,171.61,171.58,2.915]
[1730473209728,14.00647635,171.69,171.56,4.24]
[1730473209729,14.00647635,171.62,171.56,4.24]
[1730473210726,2.9152,171.58,171.55,4.24]
[1730473210925,14.00647635,171.62,171.55,4.24]
[1730473211321,2.915,171.59,171.56,2.9153]
[1730473211826,14.00647635,171.62,171.55,4.24]
[1730473212830,2.9152,171.58,171.55,7.1556]
[1730473213529,14.00647635,171.62,171.55,4.24]
[1730473213732,14.00647635,171.6,171.51,2.6227]
[1730473214031,14.00647635,171.6,171.52,4.24]
[1730473214221,14.00647635,171.58,171.51,2.6227]
[1730473214413,14.00647635,171.58,171.43,2.6088]
[1730473214414,14.00647635,171.53,171.43,2.6088]
[1730473214614,4.24,171.58,171.44,4.24]
[1730473214615,14.00647635,171.51,171.44,4.24]
[1730473215426,2.9167,171.49,171.44,7.1574]
[1730473215622,2.9167,171.49,171.44,4.24]
[1730473216023,2.9164,171.51,171.44,4.24]
[1730473216326,14.00647635,171.56,171.44,18.24647635]
[1730473216523,2.9155,171.56,171.49,2.9166]
[1730473216724,14.00647635,171.58,171.48,14.00647635]
[1730473217125,2.9156,171.55,171.51,2.9161]
[1730473219027,14.00647635,171.58,171.48,14.00647635]
[1730473219526,2.9154,171.57,171.51,2.9161]
[1730473219837,2.9154,171.57,171.5,18.24647635]
[1730473220050,2.9146,171.61,171.57,2.9152]
[1730473220333,14.00647635,171.62,171.57,2.9152]
[1730473220921,16.92097635,171.62,171.58,2.915]
[1730473221122,8.7381,171.73,171.56,4.24]
[1730473221123,14.00647635,171.66,171.56,4.24]
[1730473221328,14.00647635,171.66,171.57,16.67277635]
[1730473221635,14.00647635,171.69,171.59,14.00647635]
[1730473222139,2.9135,171.68,171.64,2.914]
[1730473222327,14.00647635,171.69,171.64,2.914]
[1730473222637,14.00647635,171.69,171.59,14.00647635]
[1730473222841,2.9138,171.66,171.62,2.9143]
[1730473223031,14.00647635,171.67,171.57,16.67277635]
[1730473223336,14.00647635,171.67,171.57,2.6663]
[1730473223636,2.9142,171.63,171.58,4.24]
[1730473224036,14.00647635,171.67,171.58,4.24]
[1730473224427,14.00647635,171.67,171.62,2.9144]
[1730473224742,2.9139,171.65,171.62,2.9144]
[1730473224945,14.00647635,171.69,171.58,4.24]
[1730473225233,2.9135,171.68,171.63,2.9142]
[1730473225536,14.00647635,171.69,171.59,14.00647635]
[1730473225731,14.00647635,171.69,171.62,2.9143]
[1730473225732,2.9139,171.65,171.62,2.9143]
[1730473226137,14.00647635,171.69,171.62,2.9143]
[1730473226534,2.9137,171.66,171.62,2.9143]
[1730473226839,14.00647635,171.67,171.58,4.24]
[1730473227335,14.00647635,171.67,171.59,2.9149]
[1730473227634,10.0651,171.73,171.58,4.24]
[1730473227635,14.00647635,171.69,171.58,4.24]
[1730473227840,14.00647635,171.69,171.62,2.9143]
[1730473228227,2.9139,171.65,171.62,2.9143]
[1730473228627,14.00647635,171.69,171.61,2.9144]
[1730473229040,2.9142,171.64,171.61,2.9144]
[1730473229332,14.00647635,171.69,171.58,4.24]
[1730473229333,14.00647635,171.69,171.63,2.9141]
[1730473229531,2.9137,171.67,171.63,2.9141]
[1730473229734,14.00647635,171.69,171.59,14.00647635]
[1730473230239,14.00647635,171.74,171.64,14.00647635]
[1730473230439,14.00647635,171.74,171.64,18.24647635]
[1730473230636,2.9132,171.7,171.67,2.9134]
[1730473230934,14.00647635,171.76,171.66,14.00647635]
[1730473231237,2.9124,171.74,171.68,2.9133]
[1730473231429,2.9124,171.74,171.66,4.24]
[1730473231430,14.00647635,171.74,171.66,4.24]
[1730473231822,14.00647635,171.74,171.66,7.1537]
[1730473231823,2.9128,171.72,171.66,7.1537]
[1730473232136,14.00647635,171.78,171.66,18.24647635]
[1730473232431,14.00647635,171.78,171.68,14.00647635]
[1730473232631,14.00647635,171.82,171.7,14.00647635]
[1730473232834,14.00647635,171.84,171.75,14.00647635]
[1730473233043,2.9117,171.78,171.76,4.24]
[1730473233223,2.8466356,171.91,171.7,14.00647635]
[1730473233224,14.00647635,171.8,171.7,14.00647635]
[1730473233428,14.00647635,171.8,171.71,4.24]
[1730473233632,2.912,171.76,171.72,2.9126]
[1730473233832,14.00647635,171.8,171.71,4.22]
[1730473234025,2.9122,171.75,171.71,7.1327]
[1730473234226,14.00647635,171.8,171.71,4.22]
[1730473234840,14.00647635,171.8,171.7,14.00647635]
[1730473235036,14.00647635,171.75,171.68,4.22]
[1730473235243,14.00647635,171.75,171.66,14.00647635]
[1730473235434,14.00647635,171.75,171.67,4.22]
[1730473235634,14.00647635,171.73,171.63,14.00647635]
[1730473235834,14.00647635,171.73,171.65,4.22]
[1730473236035,14.00647635,171.73,171.64,5.4742]
[1730473236336,14.00647635,171.73,171.65,4.22]
[1730473236549,14.00647635,171.71,171.61,14.00647635]
[1730473236839,22.38466126,171.74,171.62,4.22]
[1730473237536,2.913,171.71,171.62,4.22]
[1730473237740,22.38466126,171.74,171.62,4.22]
[1730473238138,22.38466126,171.78,171.68,2.9133]
[1730473238139,2.9126,171.73,171.68,2.9133]
[1730473238334,22.38466126,171.78,171.66,1.3072]
[1730473238540,22.38466126,171.81,171.66,1.3072]
[1730473238741,2.9118,171.78,171.73,2.9124]
[1730473238941,22.38466126,171.81,171.71,4.22]
[1730473239144,22.38466126,171.83,171.71,4.22]
[1730473239339,22.38466126,171.86,171.72,22.38466126]
[1730473240548,2.9115,171.8,171.75,2.912]
[1730473240737,22.38466126,171.86,171.75,2.912]
[1730473241637,2.9116,171.79,171.75,2.912]
[1730473243447,22.38466126,171.8,171.67,2.6366]
[1730473243645,22.38466126,171.8,171.68,4.22]
[1730473244542,2.9132,171.69,171.67,1.3264]
[1730473244742,2.9132,171.69,171.65,2.9139]
[1730473244743,22.38466126,171.77,171.65,4.22]
[1730473245247,2.9135,171.68,171.65,4.22]
[1730473245641,2.9135,171.68,171.64,22.38466126]
[1730473245837,2.9135,171.68,171.64,29.51866126]
[1730473246045,26.60466126,171.77,171.64,26.60466126]
[1730473246246,2.9132,171.69,171.64,26.60466126]
[1730473246444,26.60466126,171.77,171.64,26.60466126]
[1730473246644,26.60466126,171.77,171.64,4.22]
[1730473246645,2.9139,171.65,171.64,4.22]
[1730473246955,22.38466126,171.74,171.63,4.22]
[1730473247448,2.9136,171.67,171.63,4.22]
[1730473247641,22.38466126,171.74,171.63,7.1341]
[1730473247835,22.38466126,171.74,171.63,4.22]
[1730473248036,22.38466126,171.71,171.61,4.22]
[1730473248244,2.9142,171.64,171.61,4.22]
[1730473248742,2.9142,171.64,171.59,2.9148]
[1730473248948,2.9144,171.62,171.6,4.22]
[1730473249145,5.8243,171.76,171.6,4.22]
[1730473249146,22.38466126,171.69,171.6,4.22]
[1730473249654,22.38466126,171.71,171.6,4.22]
[1730473249953,28.65167754,171.79,171.66,2.9136]
[1730473249954,2.9131,171.7,171.66,2.9136]
[1730473250143,26.60466126,171.77,171.66,2.9136]
[1730473250447,26.60466126,171.77,171.63,22.38466126]
[1730473250751,26.60466126,171.77,171.66,2.9137]
[1730473251052,26.60466126,171.77,171.67,2.9135]
[1730473251053,2.9129,171.71,171.67,2.9135]
[1730473252149,2.9131,171.7,171.67,2.9135]
[1730473252345,26.60466126,171.77,171.68,2.9133]
[1730473252544,26.60466126,171.77,171.66,4.22]
[1730473252755,28.65167754,171.79,171.66,26.60466126]
[1730473252756,2.9127,171.72,171.66,26.60466126]
[1730473252946,2.9127,171.72,171.69,2.9131]